fUSD/lending_fUSD_20251103
["ID","MTS","AMOUNT","RATE_DAILY","PERIOD"]
[392929616,1762153709631,500.0,0.00030136,120]
[392929617,1762153710565,857.84,0.0001349,2]
[392929618,1762153711347,-300.0,0.00014395,2]
[392929619,1762153711370,-31.28599044,0.00014395,2]
[392929620,1762153711845,500.0,0.00030136,120]
[392929621,1762153711914,265.00688234,0.00030136,120]
[392929622,1762153712295,392.97616976,0.00030136,120]
[392929623,1762153713482,500.0,0.00030136,120]
[392929624,1762153714091,398.52080631,0.00030136,120]
[392929625,1762153714542,700.22,0.00030136,120]
[392929626,1762153715801,198.41386248,0.00030136,120]
[392929627,1762153716921,311.8332181,0.00030136,120]
[392929628,1762153717675,494.10498282,0.00030136,120]
[392929629,1762153717995,500.0,0.00030136,120]
[392929630,1762153718568,500.0,0.00030136,120]
[392929631,1762153719828,497.42133962,0.00030136,120]
[392929632,1762153719955,208.01269689,0.00030136,120]
[392929633,1762153720201,500.0,0.00030136,120]
[392929634,1762153720284,500.0,0.00030136,120]
[392929635,1762153720990,500.0,0.00030136,120]
[392929636,1762153721298,395.05380277,0.00030136,120]
[392929637,1762153721789,527.85570744,0.00030136,120]
[392929638,1762153722065,500.0,0.00014234,2]
[392929639,1762153723270,677.06,0.00030136,120]
[392929640,1762153725869,500.0,0.00030136,120]
[392929641,1762153727182,500.0,0.00030136,120]
[392929642,1762153728814,500.0,0.00030136,120]
[392929643,1762153729301,500.0,0.00030136,120]
[392929644,1762153729543,500.0,0.00030136,120]
[392929645,1762153729886,500.0,0.00030136,120]
[392929646,1762153729955,257.91703737,0.00030136,120]
[392929647,1762153730747,500.0,0.00030136,120]
[392929648,1762153732281,480.25971645,0.00030136,120]
[392929649,1762153734448,500.0,0.00030136,120]
[392929650,1762153734560,-163.71400956,0.00014395,2]
[392929651,1762153734586,-279.55130928,0.00014417,2]
[392929652,1762153734676,221.56631584,0.00030136,120]
[392929653,1762153734759,500.0,0.00030136,120]
[392929654,1762153735346,561.29,0.00030136,120]
[392929655,1762153736285,500.0,0.00030136,120]
[392929656,1762153736553,500.0,0.00030136,120]
[392929657,1762153736845,500.0,0.00030136,120]
[392929658,1762153739740,500.0,0.00030136,120]
[392929659,1762153741063,500.0,0.00030136,120]
[392929660,1762153741302,507.02022683,0.00030136,120]
[392929661,1762153741640,572.0,0.00030136,120]
[392929662,1762153742052,781.55,0.00030136,120]
[392929663,1762153742132,500.0,0.00030136,120]
[392929664,1762153742454,458.33498468,0.00030136,120]
[392929665,1762153743022,500.0,0.00030136,120]
[392929666,1762153743234,500.0,0.00030136,120]
[392929667,1762153744813,500.0,0.00030136,120]
[392929668,1762153746444,500.0,0.00030136,120]
[392929669,1762153747090,287.38356524,0.00030136,120]
[392929670,1762153748347,172.10238794,0.00030136,120]
[392929671,1762153749277,176.67596253,0.00030136,120]
[392929672,1762153749468,634.92,0.00030136,120]
[392929673,1762153749689,-20.44869072,0.00014417,2]
[392929674,1762153749711,-224.39491914,0.00014426,2]
[392929675,1762153750068,280.82811786,0.00030136,120]
[392929676,1762153751227,346.08465177,0.00030136,120]
[392929677,1762153751438,828.91,0.00030136,120]
[392929678,1762153751745,302.99974008,0.00030136,120]
[392929679,1762153752647,423.34238508,0.00030136,120]
[392929680,1762153753516,299.6811796,0.00030136,120]
[392929681,1762153754677,500.0,0.00030136,120]
[392929682,1762153756804,500.0,0.00030136,120]
[392929683,1762153756953,500.0,0.00030136,120]
[392929684,1762153757733,500.0,0.00030136,120]
[392929685,1762153759351,484.04363442,0.00030136,120]
[392929686,1762153759532,500.0,0.00030136,120]
[392929687,1762153759845,515.54,0.00030136,120]
[392929688,1762153760552,370.78408475,0.00030136,120]
[392929689,1762153760738,470.117829,0.00030136,120]
[392929690,1762153762712,513.04,0.00030136,120]
[392929691,1762153763307,500.0,0.00030136,120]
[392929692,1762153763382,500.0,0.00030136,120]
[392929693,1762153765714,518.1,0.00030136,120]
[392929694,1762153766378,500.0,0.00030136,120]
[392929695,1762153767367,585.57,0.00030136,120]
[392929696,1762153767548,500.0,0.00030136,120]
[392929697,1762153768233,153.67867293,0.00030136,120]
[392929698,1762153768376,500.0,0.00030136,120]
[392929699,1762153768853,500.0,0.00030136,120]
[392929700,1762153770973,500.0,0.00030136,120]
[392929701,1762153775284,459.30945584,0.00030136,120]
[392929702,1762153775588,500.0,0.00030136,120]
[392929703,1762153777161,270.69750717,0.00030136,120]
[392929704,1762153777951,331.18040523,0.00030136,120]
[392929705,1762153778032,429.04054241,0.00030136,120]
[392929706,1762153780422,568.61,0.00030136,120]
[392929707,1762153780532,500.0,0.00030136,120]
[392929708,1762153781656,171.27506683,0.00030136,120]
[392929709,1762153784765,500.0,0.00030136,120]
[392929710,1762153785084,500.0,0.00030136,120]
[392929711,1762153785324,500.0,0.00030136,120]
[392929712,1762153786133,266.30076917,0.00030136,120]
[392929713,1762153786473,500.0,0.00030136,120]
[392929714,1762153788979,354.39872762,0.00030136,120]
[392929715,1762153789713,500.0,0.00030136,120]
[392929716,1762153790214,440.50134659,0.00030136,120]
[392929717,1762153790821,447.35308086,0.00030136,120]
[392929718,1762153792720,372.58757832,0.00030136,120]
[392929719,1762153793367,309.64141669,0.00030136,120]
[392929720,1762153794223,320.3363107,0.00030136,120]
[392929721,1762153794395,500.0,0.00030136,120]
[392929722,1762153795706,500.0,0.00030136,120]
[392929723,1762153796055,174.63709982,0.00030136,120]
[392929724,1762153797827,500.0,0.00030136,120]
[392929725,1762153798167,487.62592967,0.00030136,120]
[392929726,1762153798953,596.84695203,0.00030136,120]
[392929727,1762153799038,500.0,0.00030136,120]
[392929728,1762153799238,500.0,0.00030136,120]
[392929729,1762153801113,406.59587828,0.00030136,120]
[392929730,1762153801752,500.0,0.00030136,120]
[392929731,1762153801802,200.0,0.00013758,2]
[392929732,1762153801877,268.37839563,0.00030136,120]
[392929733,1762153802671,175.8033976,0.00030136,120]
[392929734,1762153803447,500.0,0.00030136,120]
[392929735,1762153806332,500.0,0.00030136,120]
[392929736,1762153806511,500.0,0.00030136,120]
[392929737,1762153807249,299.52195625,0.00030136,120]
[392929738,1762153807446,500.0,0.00030136,120]
[392929739,1762153807585,550.61,0.00030136,120]
[392929740,1762153808212,430.94727693,0.00030136,120]
[392929741,1762153808589,617.9,0.00030136,120]
[392929742,1762153808672,500.0,0.00030136,120]
[392929743,1762153809204,500.0,0.00030136,120]
[392929744,1762153809672,500.0,0.00030136,120]
[392929745,1762153813520,500.0,0.00030136,120]
[392929746,1762153813608,412.47761964,0.00030136,120]
[392929747,1762153814782,383.30537713,0.00030136,120]
[392929748,1762153815036,500.0,0.00030136,120]
[392929749,1762153816410,500.0,0.00030136,120]
[392929750,1762153816737,500.0,0.00030136,120]
[392929751,1762153818492,156.03330023,0.00030136,120]
[392929752,1762153820378,422.70477855,0.00030136,120]
[392929753,1762153821187,500.0,0.00030136,120]
[392929754,1762153821845,211.77124635,0.00030136,120]
[392929755,1762153822139,282.33864715,0.00030136,120]
[392929756,1762153823002,375.75754513,0.00030136,120]
[392929757,1762153823116,222.72206548,0.00030136,120]
[392929758,1762153823442,193.20995429,0.00030136,120]
[392929759,1762153823868,500.0,0.00030136,120]
[392929760,1762153823956,222.26725906,0.00030136,120]
[392929761,1762153824839,505.87,0.00030136,120]
[392929762,1762153824939,712.25,0.00030136,120]
[392929763,1762153825234,494.36973139,0.00030136,120]
[392929764,1762153826830,500.0,0.00030136,120]
[392929765,1762153827043,299.97787606,0.00030136,120]
[392929766,1762153828004,650.3,0.00030136,120]
[392929767,1762153828210,379.51963437,0.00030136,120]
[392929768,1762153828827,418.13095086,0.00030136,120]
[392929769,1762153831936,150.0,0.00015,120]
[392929770,1762153831951,-833.50597282,0.00014416,2]
[392929771,1762153832436,-195.0,0.00014422,2]
[392929772,1762153832466,-21.60508086,0.00014426,2]
[392929773,1762153832487,-1200.0,0.00014426,2]
[392929774,1762153832498,-300.0,0.00014426,2]
[392929775,1762153832508,-300.0,0.00014426,2]
[392929776,1762153832519,-697.94801085,0.00014427,2]
[392929777,1762153832534,-1146.35198915,0.00014427,2]
[392929778,1762153832545,-151.0,0.00014427,2]
[392929779,1762153832555,-496.47127164,0.00014427,2]
[392929780,1762153832566,-239.84119403,0.00014427,2]
[392929781,1762153832576,-111.31544261,0.00014427,2]
[392929782,1762153832592,-211.29525739,0.00014427,2]
[392929783,1762153832602,-150.0,0.00014435,2]
[392929784,1762153832612,-2608.1615154,0.00014436,2]
[392929785,1762153832622,-2010.36738439,0.00014436,2]
[392929786,1762153832633,-511.27727383,0.00014436,2]
[392929787,1762153832649,-900.0,0.00014436,2]
[392929788,1762153832661,-4498.31984365,0.00014436,2]
[392929789,1762153832686,-875.88927357,0.00014436,2]
[392929790,1762153832698,-871.98025582,0.00014436,2]
[392929791,1762153832709,-258.38525471,0.00014436,2]
[392929792,1762153832720,-801.98263016,0.00014436,2]
[392929793,1762153834537,297.76873188,0.00030136,120]
[392929794,1762153835056,500.0,0.00030136,120]
[392929795,1762153835175,362.82500078,0.00030136,120]
[392929796,1762153835255,195.8764793,0.00030136,120]
[392929797,1762153837011,500.0,0.00030136,120]
[392929798,1762153837215,500.0,0.00030136,120]
[392929799,1762153837528,334.03278875,0.00030136,120]
[392929800,1762153837610,428.65202467,0.00030136,120]
[392929802,1762153837864,-253.47235018,0.00014326,2]
[392929803,1762153837874,-4817.73732297,0.00014436,2]
[392929804,1762153837884,-344.56,0.00014436,2]
[392929805,1762153837895,-500.0,0.00014497,2]
[392929806,1762153837905,-520.33595072,0.00014497,2]
[392929807,1762153837915,-150.99,0.00014497,2]
[392929808,1762153837925,-9999.99,0.00014497,2]
[392929809,1762153837935,-2903.36,0.00014497,2]
[392929810,1762153837945,-221.6410156,0.00014549,2]
[392929811,1762153837955,-2488.716,0.00014588,2]
[392929812,1762153837965,-155.88,0.00014591,2]
[392929813,1762153837975,-824.36105474,0.00014591,2]
[392929814,1762153837986,-168.0,0.00014671,2]
[392929815,1762153837997,-234.2205,0.000147,2]
[392929816,1762153838008,-2500.0,0.000147,2]
[392929817,1762153838019,-436.93793096,0.000147,2]
[392929818,1762153838030,-1159.02734007,0.000147,2]
[392929819,1762153838040,-436.93793094,0.00014722,2]
[392929820,1762153838051,-8021.24563188,0.00014733,2]
[392929821,1762153838061,-436.93793094,0.00014744,2]
[392929822,1762153838072,-8021.24563184,0.00014752,2]
[392929823,1762153838083,-3421.0,0.00014755,2]
[392929824,1762153838094,-436.93793094,0.00014767,2]
[392929825,1762153838105,-500.0,0.00014769,2]
[392929826,1762153838115,-500.0,0.00014769,2]
[392929827,1762153838125,-500.0,0.00014769,2]
[392929828,1762153838136,-500.0,0.00014769,2]
[392929829,1762153838146,-412.2688127,0.00014769,2]
[392929830,1762153838157,-8021.24563184,0.0001477,2]
[392929831,1762153838171,-500.0,0.00014773,2]
[392929832,1762153838181,-501.49023745,0.00014773,2]
[392929833,1762153838191,-500.0,0.00014773,2]
[392929834,1762153838201,-500.0,0.00014773,2]
[392929835,1762153838212,-500.0,0.00014773,2]
[392929836,1762153838226,-504.37670237,0.00014773,2]
[392929838,1762153838236,-217.68277019,0.00014773,2]
[392929839,1762153838247,-500.0,0.00014773,2]
[392929840,1762153838258,-500.0,0.00014773,2]
[392929841,1762153838268,-500.0,0.00014773,2]
[392929843,1762153838278,-500.0,0.00014773,2]
[392929845,1762153838289,-164.03076053,0.00014773,2]
[392929847,1762153838300,-1073.1,0.00014773,2]
[392929849,1762153838310,-1314.0,0.00014774,2]
[392929851,1762153838321,-1272.0,0.00014774,2]
[392929853,1762153838331,-819.0,0.00014774,2]
[392929855,1762153838344,-497.42479546,0.00014775,2]
[392929857,1762153838354,-5163.98583417,0.00014789,2]
[392929858,1762153838368,-278.29072589,0.00014789,2]
[392929859,1762153838384,-1627.4,0.00014789,2]
[392929860,1762153838396,-662.671405,0.00014789,2]
[392929861,1762153838430,-288.89766678,0.00014789,2]
[392929862,1762153838442,-436.93793094,0.00014789,2]
[392929863,1762153838453,-500.0,0.00014799,2]
[392929864,1762153838463,-500.0,0.00014799,2]
[392929865,1762153838474,-164.02818887,0.00014799,2]
[392929866,1762153838484,-297.52662042,0.00014799,2]
[392929867,1762153838495,-95.30750672,0.00014799,2]
[392929875,1762153840137,-167.74428056,0.00014799,2]
[392929876,1762153840148,-136.19571944,0.00014799,2]
[392929885,1762153840667,-1.6e-07,0.00014799,2]
[392929887,1762153840682,-27.62376843,0.00014799,2]
[392929889,1762153840693,-500.0,0.00014799,2]
[392929892,1762153840704,-500.0,0.00014799,2]
[392929894,1762153840714,-522.30037164,0.00014799,2]
[392929896,1762153840725,-500.0,0.00014799,2]
[392929898,1762153840735,-500.0,0.00014799,2]
[392929900,1762153840745,-500.0,0.00014799,2]
[392929902,1762153840755,-1421.17595914,0.000148,2]
[392929905,1762153840768,-2153.4,0.000148,2]
[392929907,1762153840784,-15796.94927913,0.000148,2]
[392929909,1762153840796,-1503.41522327,0.000148,2]
[392929913,1762153841014,-249125.05953846,0.000148,2]
[392929914,1762153841024,-1159.02734007,0.000148,2]
[392929915,1762153841034,-8021.24563184,0.00014807,2]
[392929916,1762153841044,-436.93793094,0.00014811,2]
[392929917,1762153841054,-500.0,0.00014822,2]
[392929918,1762153841064,-8021.24563184,0.00014826,2]
[392929919,1762153841075,-436.93793094,0.00014833,2]
[392929920,1762153841085,-4484.056,0.00014838,2]
[392929921,1762153841097,-958.067,0.00014838,2]
[392929922,1762153841107,-905.0,0.00014838,2]
[392929923,1762153841116,-8021.24563184,0.00014844,2]
[392929924,1762153841127,-390.08480077,0.0001485,2]
[392929925,1762153841136,-205.61251947,0.0001485,2]
[392929926,1762153841146,-205.4835135,0.0001485,2]
[392929927,1762153841156,-397.58995,0.0001485,2]
[392929928,1762153841170,-436.93793094,0.00014856,2]
[392929929,1762153841180,-8021.24563184,0.00014863,2]
[392929930,1762153841190,-204.65027273,0.00014865,2]
[392929931,1762153841200,-150.0,0.00014865,2]
[392929932,1762153841211,-150.34146439,0.00014865,2]
[392929933,1762153841221,-150.0,0.00014865,2]
[392929934,1762153841232,-660.0,0.00014865,2]
[392929935,1762153841244,-150.0,0.00014865,2]
[392929936,1762153841254,-872.0,0.00014865,2]
[392929937,1762153841264,-263.17194606,0.00014865,2]
[392929938,1762153841274,-150.0,0.00014865,2]
[392929939,1762153841284,-500.0,0.00014865,2]
[392929940,1762153841294,-500.0,0.00014865,2]
[392929941,1762153841305,-436.93793094,0.00014878,2]
[392929942,1762153841315,-200.0,0.0001488,2]
[392929943,1762153841324,-8021.24563184,0.00014881,2]
[392929944,1762153841334,-193.0,0.00014892,2]
[392929945,1762153841346,-821.0,0.00014896,2]
[392929946,1762153841356,-573.0,0.00014896,2]
[392929947,1762153841366,-607.0,0.00014896,2]
[392929948,1762153841375,-500.0,0.00014899,2]
[392929949,1762153841386,-500.0,0.00014899,2]
[392929950,1762153841395,-500.0,0.00014899,2]
[392929951,1762153841406,-523.84,0.00014899,2]
[392929952,1762153841416,-500.0,0.00014899,2]
[392929953,1762153841426,-500.0,0.00014899,2]
[392929954,1762153841436,-327226.5057,0.000149,2]
[392929955,1762153841445,-697.28550631,0.000149,2]
[392929956,1762153841456,-413.8384,0.000149,2]
[392929957,1762153841467,-150.0,0.000149,2]
[392929958,1762153841477,-164.85296633,0.000149,2]
[392929959,1762153841487,-837.8078,0.000149,2]
[392929960,1762153841497,-1271.37559127,0.000149,2]
[392929961,1762153841507,-436.93793094,0.000149,2]
[392929962,1762153841518,-203.97594527,0.000149,2]
[392929963,1762153841527,-623.57635736,0.000149,2]
[392929964,1762153841537,-189.42492088,0.000149,2]
[392929965,1762153841547,-8021.24563184,0.000149,2]
[392929966,1762153841557,-193.0,0.00014939,2]
[392929967,1762153841567,-500.0,0.00014973,2]
[392929968,1762153841577,-500.0,0.00014973,2]
[392929969,1762153841587,-159.91952,0.00014973,2]
[392929970,1762153841598,-500.0,0.00014973,2]
[392929971,1762153841608,-500.0,0.00014973,2]
[392929972,1762153841618,-500.0,0.00014973,2]
[392929973,1762153841628,-500.0,0.00014973,2]
[392929974,1762153841638,-560.97280974,0.00014973,2]
[392929975,1762153841648,-500.0,0.00014973,2]
[392929976,1762153841658,-500.0,0.00014973,2]
[392929977,1762153841668,-500.0,0.00014973,2]
[392929978,1762153841678,-500.0,0.00014973,2]
[392929979,1762153841687,-500.0,0.00014973,2]
[392929980,1762153841697,-500.0,0.00014973,2]
[392929981,1762153841707,-500.0,0.00014973,2]
[392929982,1762153841716,-504.26506691,0.00014973,2]
[392929983,1762153841726,-500.0,0.00014973,2]
[392929984,1762153841736,-359.13501944,0.00014973,2]
[392929985,1762153841746,-500.43150842,0.00014973,2]
[392929986,1762153841756,-500.0,0.00014973,2]
[392929987,1762153841766,-321.53200453,0.00014973,2]
[392929988,1762153841776,-501.78189786,0.00014973,2]
[392929989,1762153841785,-500.0,0.00014973,2]
[392929990,1762153841795,-500.0,0.00014973,2]
[392929991,1762153841804,-374.70917724,0.00014973,2]
[392929992,1762153841814,-501.35810388,0.00014973,2]
[392929993,1762153841824,-500.0,0.00014973,2]
[392929994,1762153841834,-500.0,0.00014973,2]
[392929995,1762153841845,-514.84070869,0.00014975,2]
[392929996,1762153841854,-342.52502965,0.00014979,2]
[392929997,1762153841864,-230.38809842,0.00014983,2]
[392929998,1762153841874,-150.00000002,0.00014986,2]
[392929999,1762153841885,-193.0,0.00014988,2]
[392930000,1762153841895,-229.56999017,0.0001499,2]
[392930001,1762153841904,-229.56999017,0.0001499,2]
[392930002,1762153841914,-229.56999017,0.0001499,2]
[392930003,1762153841924,-3576.0419098,0.00014997,2]
[392930004,1762153841934,-2930.86954552,0.00014998,2]
[392930005,1762153841944,-5481.03,0.00014998,2]
[392930006,1762153841954,-1000.0,0.00014999,2]
[392930007,1762153841965,-593.12438034,0.00014999,2]
[392930008,1762153841974,-500.0,0.00014999,2]
[392930009,1762153841984,-500.0,0.00014999,2]
[392930010,1762153841994,-500.0,0.00014999,2]
[392930011,1762153842003,-500.0,0.00014999,2]
[392930012,1762153842013,-500.0,0.00014999,2]
[392930013,1762153842022,-500.0,0.00014999,2]
[392930014,1762153842032,-500.0,0.00014999,2]
[392930015,1762153842042,-500.0,0.00014999,2]
[392930016,1762153842052,-266.17310046,0.00014999,2]
[392930017,1762153842062,-500.0,0.00014999,2]
[392930018,1762153842071,-500.0,0.00014999,2]
[392930019,1762153842081,-345.92808519,0.00014999,2]
[392930020,1762153842091,-155.0,0.00014999,2]
[392930021,1762153842101,-666.0,0.00014999,2]
[392930022,1762153842111,-4049.0,0.00015,2]
[392930023,1762153842120,-1455110.77934126,0.00015,2]
[392930024,1762153842130,-163.0,0.00015,2]
[392930025,1762153842140,-431734.04006421,0.00015,2]
[392930026,1762153842307,455.15587834,0.00030136,120]
[392930027,1762153842470,258.1222173,0.00030136,120]
[392930028,1762153842581,174.18765007,0.00030136,120]
[392930029,1762153842656,330.99369102,0.00030136,120]
[392930030,1762153842729,177.36193011,0.00030136,120]
[392930045,1762153843109,-824.36105474,0.00014652,2]
[392930046,1762153843118,-6858.29125526,0.00015,2]
[392930047,1762153843129,-11985.73677001,0.00015,2]
[392930048,1762153843140,-22869.99996,0.00015,2]
[392930049,1762153843151,-353.66153998,0.00015,2]
[392930050,1762153843162,-27070.1443288,0.00015,2]
[392930051,1762153843176,-31894.45950334,0.00015,2]
[392930052,1762153843575,500.0,0.00030136,120]
[392930053,1762153844303,196.97210477,0.00030136,120]
[392930054,1762153844374,277.72693034,0.00030136,120]
[392930064,1762153846087,370.24750253,0.00030136,120]
[392930065,1762153846130,-6022.47637597,0.00015,2]
[392930066,1762153846140,-3440.81247953,0.00015,2]
[392930067,1762153846259,-2537.09434117,0.00015,2]
[392930071,1762153846509,500.0,0.00030136,120]
[392930072,1762153847844,286.71134461,0.00030136,120]
[392930073,1762153848177,150.5,0.0002609,120]
[392930074,1762153848310,227.60788711,0.00030136,120]
[392930075,1762153848637,150.5,0.0002608,120]
[392930076,1762153848775,500.0,0.00030136,120]
[392930077,1762153848983,451.09162518,0.00030136,120]
[392930078,1762153849081,150.5,0.0002607,120]
[392930079,1762153849531,228.02,0.0002829,120]
[392930080,1762153851035,477.19835918,0.00030136,120]
[392930081,1762153851158,500.0,0.00030136,120]
[392930082,1762153852099,427.39367727,0.00030136,120]
[392930083,1762153852795,500.0,0.00030136,120]
[392930084,1762153853104,500.0,0.00030136,120]
[392930085,1762153855546,467.98,0.0001349,2]
[392930086,1762153855926,420.18130109,0.00030136,120]
[392930087,1762153857287,285.40016509,0.00030136,120]
[392930088,1762153857688,500.0,0.00030136,120]
[392930089,1762153858369,500.0,0.00030136,120]
[392930090,1762153859166,500.0,0.00030136,120]
[392930091,1762153859907,470.81406497,0.00030136,120]
[392930092,1762153860912,258.91658001,0.00030136,120]
[392930093,1762153862807,207.37452287,0.00030136,120]
[392930094,1762153863689,414.33427249,0.00030136,120]
[392930095,1762153864125,500.0,0.00030136,120]
[392930096,1762153865259,417.58911661,0.00030136,120]
[392930097,1762153865983,268.52539408,0.00030136,120]
[392930098,1762153866651,424.44779415,0.00030136,120]
[392930099,1762153867148,403.49246872,0.00030136,120]
[392930100,1762153868317,374.60326898,0.00030136,120]
[392930101,1762153868910,482.95754938,0.00030136,120]
[392930102,1762153870558,324.35288358,0.00030136,120]
[392930103,1762153870731,500.0,0.00030136,120]
[392930104,1762153872274,500.0,0.00030136,120]
[392930105,1762153872521,479.63592788,0.00030136,120]
[392930106,1762153873575,500.0,0.00030136,120]
[392930107,1762153874262,176.34304599,0.00030136,120]
[392930108,1762153874670,500.0,0.00030136,120]
[392930109,1762153876752,500.0,0.00030136,120]
[392930110,1762153877850,317.67947417,0.00030136,120]
[392930111,1762153878113,500.0,0.00030136,120]
[392930112,1762153879420,408.34506353,0.00030137,120]
[392930113,1762153880124,339.64883748,0.00030136,120]
[392930114,1762153880823,500.0,0.00030136,120]
[392930115,1762153881129,345.94093767,0.00030136,120]
[392930116,1762153882110,277.35018753,0.00030136,120]
[392930117,1762153882325,339.05099343,0.00030136,120]
[392930118,1762153882422,205.16229667,0.00030136,120]
[392930119,1762153883060,468.98620206,0.00030136,120]
[392930120,1762153883156,500.0,0.00030136,120]
[392930121,1762153884200,323.21812378,0.00030136,120]
[392930122,1762153884389,500.0,0.00030136,120]
[392930123,1762153887664,500.0,0.00030136,120]
[392930124,1762153889356,478.14630982,0.00030136,120]
[392930125,1762153889452,655.08,0.00030136,120]
[392930126,1762153889533,249.99649909,0.00030136,120]
[392930127,1762153890556,359.97541204,0.00030136,120]
[392930128,1762153891106,500.0,0.00030136,120]
[392930129,1762153891185,320.04920996,0.00030136,120]
[392930130,1762153891579,285.96505451,0.00030136,120]
[392930131,1762153892338,442.37862197,0.00030136,120]
[392930132,1762153892740,500.0,0.00030136,120]
[392930133,1762153893509,501.05,0.00030136,120]
[392930134,1762153893772,500.0,0.00030136,120]
[392930135,1762153894450,490.68145203,0.00030136,120]
[392930136,1762153896269,500.0,0.00030136,120]
[392930137,1762153897674,513.53,0.00030136,120]
[392930138,1762153897752,500.0,0.00030136,120]
[392930139,1762153898030,415.80347452,0.00030136,120]
[392930140,1762153900197,407.7054409,0.00030136,120]
[392930141,1762153900664,450.51301386,0.00030136,120]
[392930142,1762153901068,227.55344689,0.00030136,120]
[392930143,1762153901285,547.62,0.00030136,120]
[392930144,1762153901658,617.07269264,0.00030136,120]
[392930146,1762153903537,185.35442542,0.00030136,120]
[392930147,1762153903837,252.17366201,0.00030136,120]
[392930148,1762153903927,180.23349081,0.00030136,120]
[392930149,1762153904415,500.0,0.00030136,120]
[392930150,1762153907525,448.45304725,0.00030136,120]
[392930151,1762153907632,199.23016603,0.00030136,120]
[392930152,1762153908049,234.86469998,0.00030136,120]
[392930153,1762153908568,176.71089455,0.00030136,120]
[392930154,1762153909218,500.0,0.00030136,120]
[392930155,1762153909296,441.69574441,0.00030136,120]
[392930156,1762153909561,550.44,0.00030136,120]
[392930157,1762153909642,500.0,0.00030136,120]
[392930158,1762153910857,307.38596823,0.00030136,120]
[392930159,1762153911009,310.67528023,0.00030136,120]
[392930160,1762153912730,332.55877747,0.00030136,120]
[392930161,1762153912814,500.0,0.00030136,120]
[392930162,1762153914482,428.82671609,0.00030136,120]
[392930163,1762153915970,500.0,0.00030136,120]
[392930164,1762153916778,408.02140189,0.00030136,120]
[392930165,1762153917628,500.0,0.00030136,120]
[392930166,1762153917805,168.60906116,0.00030136,120]
[392930167,1762153918492,208.16128479,0.00030136,120]
[392930168,1762153918567,474.01770673,0.00030136,120]
[392930169,1762153918667,500.0,0.00030136,120]
[392930170,1762153918739,500.0,0.00030136,120]
[392930171,1762153920011,500.0,0.00030136,120]
[392930172,1762153920198,500.0,0.00030136,120]
[392930173,1762153920894,500.0,0.00030136,120]
[392930174,1762153923101,500.0,0.00030136,120]
[392930175,1762153924455,305.22788929,0.00030136,120]
[392930176,1762153925204,239.79212596,0.00030136,120]
[392930177,1762153925583,500.0,0.00030136,120]
[392930178,1762153927298,500.0,0.00030136,120]
[392930179,1762153927589,500.0,0.00030136,120]
[392930180,1762153928072,460.77080497,0.00030136,120]
[392930181,1762153928775,500.0,0.00030136,120]
[392930182,1762153929715,500.0,0.00030136,120]
[392930183,1762153931396,183.40213493,0.00030136,120]